[Event "21st Alekhine FIDE 2017"]
[Site "Voronezh"]
[Date "2017.06.16"]
[Round "5"]
[White "Kozlov, Sergej A"]
[Black "Khajrutdinov, Ildar"]
[Result "1-0"]
[ECO "E15"]
[WhiteElo "2072"]
[BlackElo "2087"]
[Annotator "NA"]
[PlyCount "108"]
[EventDate "2017.??.??"]
[EventType "swiss"]
[EventCountry "RUS"]
[SourceTitle "playchess.com"]
[Source "ChessBase"]
[SourceQuality "1"]
[TimeControl "40/5400+30:1800+30"]

{[%evp 8,108,15,21,25,2,7,20,13,-12,14,-23,-2,-10,6,0,8,-6,0,0,12,-10,20,8,7,3,35,8,42,4,16,-16,-16,-19,-3,-10,-6,-39,-1,-42,-66,-158,-110,-120,-108,-199,-190,-194,-163,-155,-123,-134,-137,-134,-138,32767,-106,-157,-138,-236,32767,32767,-139,-158,-143,32767,-172,-227,-126,-156,-113,-129,-94,-102,-98,-116,-89,-199,-83,-89,-63,-51,-32,-87,20,0,6,0,0,0,7,0,0,0,0,0,0,32767,32767,32767,32767,0,0]} 1. d4 {[%emt 0:00:26]} Nf6 {[%emt 0:00:12]} 2. c4 {[%emt 0:00:10]} e6 {[%emt 0:00:07]} 3. Nf3 {[%emt 0:00:05]} b6 {[%emt 0:00:07]} 4. g3 {[%emt 0:01:09]} Ba6 {[%emt 0:00:41]} 5. Qa4 {[%emt 0:01:55]} Bb7 {[%emt 0:06:29]} 6. Bg2 {[%emt 0:01:16]} c5 {[%emt 0:01:17]} 7. O-O {[%emt 0:06:04] LiveBook: 398 Games} cxd4 {[%emt 0:09:18] E15: Queen's Indian: 4 g3 sidelines, 4 g3 Ba6 and 4 g3 Bb7 early deviations} 8. Rd1 {[%emt 0:09:01]} (8. Nxd4 Bxg2 9. Kxg2 Qc8 10. Rd1 Qb7+ 11. f3 Bc5 12. Nc3 O-O 13. Bg5 Ng4 14. Ne4 h6 15. Bc1 Be7 16. Nb5 Ne5 17. Bf4 Ng6 18. Bd6 {0-1 (55) Nikolic,P (2603)-Navara,D (2734) Berlin 2015}) 8... Qc8 $146 {[%emt 0:03:03]} ({Predecessor:} 8... a6 9. Nxd4 Bxg2 10. Kxg2 Qc7 11. Nc3 Be7 12. f3 Qb7 13. Bg5 h6 14. Bxf6 Bxf6 15. Ne4 Be7 16. Rd3 {½-½ (16) Postny,E (2434)-Csom,I (2478) Budapest 2000}) 9. Rxd4 {[%emt 0:12:30]} Bc5 {[%emt 0:03:55]} 10. Rd1 {[%emt 0:00:14]} Ne4 {[%emt 0:13:08]} 11. e3 {[%emt 0:00:49]} O-O {[%emt 0:02:47]} 12. Nbd2 {[%emt 0:01:19]} Be7 {[%emt 0:16:17]} 13. Qc2 {[%emt 0:04:26]} Nf6 {[%emt 0:03:04]} 14. a3 {[%emt 0:05:22]} d6 {[%emt 0:05:05]} (14... b5 $5) 15. b4 {[%emt 0:04:32]} Nbd7 {[%emt 0:01:17]} 16. Bb2 {[%emt 0:00:36]} Qc7 {[%emt 0:01:47]} 17. Rac1 {[%emt 0:01:46]} Rac8 {[%emt 0:00:22]} 18. Qa4 {[%emt 0:03:57]} Qb8 {[%emt 0:04:10]} 19. Qb3 {[%emt 0:04:03]} Qa8 {[%emt 0:00:46]} 20. Qd3 {[%emt 0:01:33]} Rc7 {[%emt 0:05:55]} 21. Qe2 {[%emt 0:00:56]} Rfc8 {[%emt 0:02:43]} 22. Nb3 {[%emt 0:01:14]} Ne5 {[%emt 0:06:00]} 23. Bxe5 {[%emt 0:06:33]} dxe5 {[%emt 0:00:02]} 24. Ne1 {[%emt 0:01:07]} (24. Nbd2 $15) 24... Bxg2 {[%emt 0:00:15]} 25. Nxg2 {[%emt 0:00:04]} a5 {[%emt 0:01:22]} 26. Qb2 {[%emt 0:02:25]} (26. c5 $17 {was worth a try.}) 26... axb4 {[%emt 0:00:45]} 27. axb4 {[%emt 0:00:07]} Qa4 {[%emt 0:03:36]} ({But not} 27... Bxb4 28. Qxe5 Qa2 29. Rd8+ Rxd8 30. Qxc7 $17) 28. Nd2 {[%emt 0:01:55]} Rd7 {[%emt 0:06:15]} 29. Ne1 {[%emt 0:08:32]} Qxb4 {[%emt 0:00:46]} 30. Qc2 {[%emt 0:01:55]} Rcd8 {[%emt 0:01:35]} 31. Rb1 {[%emt 0:01:55]} Qc5 {[%emt 0:02:07]} ({Of course not} 31... Rxd2 $6 32. Rxb4 Rxd1 33. Rb1 $11) 32. Nb3 {[%emt 0:01:08]} Qc7 {[%emt 0:00:28]} 33. Rdc1 {[%emt 0:00:40]} (33. Rxd7 $17 {might work better.} Nxd7 34. Nf3) 33... g6 {[%emt 0:00:21]} 34. Nf3 {[%emt 0:00:27]} Ba3 {[%emt 0:00:37]} 35. Re1 {[%emt 0:00:26]} Bb4 {[%emt 0:00:24]} 36. Rf1 {[%emt 0:00:49]} e4 {[%emt 0:00:38]} 37. Nfd4 {[%emt 0:00:07]} (37. Qb2 $17) 37... Bc5 {[%emt 0:00:37]} 38. Qc3 {[%emt 0:01:27]} Qe5 {[%emt 0:00:15]} 39. h3 {[%emt 0:01:13]} Ra8 {[%emt 0:00:40]} 40. Qc2 {[%emt 0:00:58]} Qh5 {[%emt 0:30:34]} 41. Kg2 {[%emt 0:30:10]} e5 {[%emt 0:00:32]} 42. Ne2 {[%emt 0:00:53]} (42. Nxc5 $17 bxc5 43. Nb3) 42... Rad8 {[%emt 0:00:31]} (42... Qf3+ $19 {has better winning chances.} 43. Kg1 Bb4) 43. g4 {[%emt 0:01:15]} Qg5 {[%emt 0:00:35]} 44. Ng3 $1 {[%emt 0:00:11]} Rd3 {[%emt 0:00:28]} 45. Rfd1 {[%emt 0:00:22] [#]} (45. Rbd1 $11 Nxg4 46. hxg4 Qxg4 47. Rxd3 exd3 48. Qc3) 45... Qh4 {[%emt 0:00:33]} ({Better is} 45... Bxe3 $1 $17 {[%mdl 512]} 46. fxe3 Qxe3 47. Rxd3 Rxd3) 46. Nd2 $1 {[%emt 0:00:53]} h5 {[%emt 0:00:23]} 47. Ndxe4 {[%emt 0:00:30]} Rxd1 {[%emt 0:00:22]} 48. Rxd1 {[%emt 0:01:12]} Nxe4 {[%emt 0:00:28]} 49. Rxd8+ {[%emt 0:01:36]} Qxd8 {[%emt 0:00:03]} 50. Qxe4 {[%emt 0:00:16]} hxg4 {[%emt 0:00:20]} 51. hxg4 {[%emt 0:00:15]} Qf6 {[%emt 0:00:27]} 52. Qa8+ Kg7 53. Ne4 Qe6 54. g5 Qg4+ $11 1-0

[Event "21st Alekhine FIDE 2017"]
[Site "Voronezh"]
[Date "2017.06.16"]
[Round "5"]
[White "Chekletsov, Egor"]
[Black "Sokolovsky, Victor"]
[Result "1/2-1/2"]
[ECO "D32"]
[WhiteElo "2070"]
[BlackElo "1896"]
[Annotator "NA"]
[PlyCount "93"]
[EventDate "2017.??.??"]
[EventType "swiss"]
[EventCountry "RUS"]
[SourceTitle "playchess.com"]
[Source "ChessBase"]
[SourceQuality "1"]
[TimeControl "40/5400+30:1800+30"]

{[%evp 8,93,31,22,34,32767,-20,-37,8,5,7,14,8,-34,-14,-51,-58,-104,-41,-46,-37,-22,-3,-9,25,-25,-4,-12,-28,-92,-12,-60,-37,-31,-45,-60,-39,-56,-64,-71,0,0,27,0,10,0,0,-11,15,18,9,14,32767,32767,32767,0,22,0,24,0,49,0,39,19,32767,32767,27,0,32767,32767,32767,32767,32767,32767,0,0,0,0,32767,32767,0,0,0,0,0,0,0,0]} 1. d4 {[%emt 0:00:00]} d5 {[%emt 0:00:41]} 2. c4 {[%emt 0:00:00]} e6 {[%emt 0:00:17]} 3. Nc3 {[%emt 0:00:05]} c5 {[%emt 0:00:21]} 4. cxd5 {[%emt 0:00:27]} cxd4 {[%emt 0:01:33]} 5. Qxd4 {[%emt 0:00:37]} Nc6 {[%emt 0:00:40]} 6. Qa4 {[%emt 0:02:13]} exd5 {[%emt 0:01:11]} 7. Nf3 {[%emt 0:02:43] D32: Tarrasch Defence: Sidelines and lines without g3} Nf6 {[%emt 0:01:43]} (7... d4 $15 8. Nb5 Nf6 (8... Bb4+ 9. Bd2 Bxd2+ 10. Nxd2 Nge7 11. g3 O-O 12. Bg2 a6 13. Na3 Bg4 14. h3 Bh5 {1-0 (77) Harika,D (2512)-Cramling,P (2516) Beijing 2012})) 8. Bg5 {[%emt 0:01:52]} Bb4 {[%emt 0:02:06]} 9. e3 {[%emt 0:03:40]} O-O {[%emt 0:02:41]} 10. Be2 $146 {[%emt 0:03:19]} ({Predecessor:} 10. Rd1 h6 11. Bh4 g5 12. Bg3 Ne4 13. Be5 Qe7 14. a3 Bxc3+ 15. Bxc3 Nxc3 16. bxc3 {0-1 (43) Prestel,O (2130)-Weigand,B (2292) Lauffen am Neckar 2011}) 10... d4 {[%emt 0:09:27]} 11. exd4 {[%emt 0:03:58]} Nxd4 {[%emt 0:07:51]} 12. O-O-O {[%emt 0:20:50]} Nxe2+ {[%emt 0:05:09]} ({Black should play} 12... Bxc3 $17 13. Nxd4 Bd7) 13. Nxe2 {[%emt 0:01:03]} Qc7+ {[%emt 0:01:43]} (13... Qe7 $5 {[%cal Re7e2]} 14. Ned4 Qc5+ 15. Kb1 Ne4 $11) 14. Kb1 {[%emt 0:00:45]} Bf5+ {[%emt 0:02:57]} 15. Ka1 {[%emt 0:00:06]} a5 {[%emt 0:04:03]} 16. Ned4 {[%emt 0:04:46]} (16. Bxf6 $5 gxf6 17. Qb5 $11) 16... Bg6 {[%emt 0:02:56]} (16... Bd7 $5 {[%cal Rd7a4]} 17. Qc2 Qxc2 18. Nxc2 Ba4 $11) 17. Bxf6 {[%emt 0:01:43]} gxf6 {[%emt 0:00:11]} 18. g4 {[%emt 0:02:12]} (18. a3 $11 {remains equal.}) 18... Rac8 {[%emt 0:03:07]} (18... Qf4 $17 19. Qb3 Rad8) 19. a3 {[%emt 0:01:26]} Rfd8 {[%emt 0:05:56]} 20. Nf5 {[%emt 0:15:15]} ({Don't blunder} 20. axb4 $2 axb4 21. Rc1 Ra8 $19) 20... b5 {[%emt 0:15:50]} 21. Qb3 {[%emt 0:02:18]} Bf8 {[%emt 0:01:26]} 22. N3d4 {[%emt 0:04:46]} b4 {[%emt 0:04:41]} 23. a4 $1 {[%emt 0:00:11]} Qf4 {[%emt 0:01:07]} (23... Bc5 $15) 24. f3 {[%emt 0:06:47]} Bxf5 {[%emt 0:02:12]} 25. Nxf5 {[%emt 0:00:19]} Rd2 {[%emt 0:00:14]} (25... h5 $5) 26. Qe3 {[%emt 0:02:40]} Qxe3 {[%emt 0:02:34]} 27. Nxe3 {[%emt 0:00:03]} Rcd8 {[%emt 0:00:09]} 28. Rxd2 {[%emt 0:01:17]} Rxd2 {[%emt 0:00:24]} 29. Nc4 {[%emt 0:00:18]} Rd5 {[%emt 0:02:38]} 30. b3 {[%emt 0:00:04]} f5 {[%emt 0:00:47]} 31. Kb1 {[%emt 0:00:37]} Bg7 {[%emt 0:01:04]} (31... Bd6 $5) 32. Kc2 {[%emt 0:00:31]} fxg4 {[%emt 0:01:25]} (32... Be5 $5) 33. fxg4 {[%emt 0:00:04]} h5 {[%emt 0:00:48]} (33... Be5 $5) 34. Rd1 {[%emt 0:02:05]} Rc5 {[%emt 0:02:34]} 35. Rd8+ {[%emt 0:00:15]} Kh7 {[%emt 0:00:10]} 36. Ra8 {[%emt 0:00:05]} hxg4 {[%emt 0:02:10]} 37. Rxa5 {[%emt 0:03:16]} Rxa5 {[%emt 0:01:58]} 38. Nxa5 {[%emt 0:00:05]} Be5 {[%emt 0:00:04]} 39. Kd3 {[%emt 0:00:03]} Bxh2 {[%emt 0:00:49]} 40. Ke2 {[%emt 0:00:03]} f5 {[%emt 0:33:14]} 41. Nc6 {[%emt 0:30:05]} f4 {[%emt 0:00:51]} 42. a5 {[%emt 0:00:31]} f3+ {[%emt 0:03:06]} 43. Kf2 {[%emt 0:00:27]} Bd6 {[%emt 0:00:20]} 44. a6 {[%emt 0:00:41]} Bc5+ {[%emt 0:00:13]} 45. Kg3 {[%emt 0:00:04]} Bd6+ {[%emt 0:00:51]} 46. Kf2 {[%emt 0:02:28]} Bc5+ {[%emt 0:00:33]} 47. Kg3 $11 {[%emt 0:01:15]} 1/2-1/2

[Event "21st Alekhine FIDE 2017"]
[Site "Voronezh"]
[Date "2017.06.16"]
[Round "5"]
[White "Kondaurov, Yury"]
[Black "Manukovsky, Vladimir"]
[Result "0-1"]
[ECO "A04"]
[WhiteElo "2046"]
[BlackElo "2200"]
[Annotator "NA"]
[PlyCount "136"]
[EventDate "2017.??.??"]
[EventType "swiss"]
[EventCountry "RUS"]
[SourceTitle "playchess.com"]
[Source "ChessBase"]
[SourceQuality "1"]
[TimeControl "40/5400+30:1800+30"]

{[%evp 8,136,0,11,11,6,0,11,8,3,2,13,16,17,24,-12,0,0,-11,-2,2,-13,8,8,41,17,27,20,16,-36,-27,-37,-14,-69,-46,-115,0,-14,0,-73,-35,-92,-42,-56,-41,-78,-53,-54,-47,-98,-89,-125,-104,-138,-83,-95,122,136,118,130,139,129,122,108,110,139,131,140,232,245,219,56,75,5,66,0,0,0,77,0,0,0,0,8,14,-455,-548,-666,-713,-779,-818,-1137,-742,-1057,-1108,-5143,-5783,-5195,-29975,-12835,-29979,-29988,-362,-319,-395,-361,-466,-389,-531,-420,-465,-475,-1026,-2070,-1040,-12827,-585,-12832,-12837,-2113,-1385,-12839,-12840,-5057,-5225,-5583,-12841,-12842,-12842,-4802,-12843]} 1. Nf3 {[%emt 0:00:00]} c5 {[%emt 0:00:30]} 2. g3 {[%emt 0:00:30]} Nc6 {[%emt 0:00:30]} 3. Bg2 {[%emt 0:00:30]} g6 {[%emt 0:00:30]} 4. O-O {[%emt 0:00:30]} Bg7 {[%emt 0:00:30]} 5. c4 {[%emt 0:00:30]} d6 {[%emt 0:00:30]} 6. Nc3 {[%emt 0:00:30]} e5 {[%emt 0:00:30]} 7. d3 {[%emt 0:00:30]} Nge7 {[%emt 0:00:30]} 8. a3 {[%emt 0:00:30]} O-O {[%emt 0:00:30]} 9. Rb1 {[%emt 0:00:30]} h6 {[%emt 0:08:26]} 10. b4 {[%emt 0:11:58] LiveBook: 24 Games} Rb8 {[%emt 0:03:25]} 11. bxc5 {[%emt 0:03:57] A37: Symmetrical English vs ...g6: 4 Bg2 Bg7 5 Nf3} (11. b5 $5 {[%cal Rb5c6]} Nd4 12. Bb2 $14) (11. Bd2 Be6 12. Ne1 f5 13. Qa4 f4 14. e3 g5 15. b5 Na5 16. Ne2 b6 17. exf4 gxf4 18. gxf4 Ng6 19. fxe5 dxe5 {1-0 (41) Kramnik,V (2788)-Alekseev,E (2708) Moscow 2008}) 11... dxc5 {[%emt 0:00:36]} 12. Bb2 $146 {[%emt 0:00:02]} ({Predecessor:} 12. Ne1 Be6 13. Nc2 f5 14. Ne3 Qd7 15. Ned5 b6 16. Qa4 Rbd8 17. Bb2 Kh7 18. e3 Nc8 {0-1 (31) Jurek,J (2287)-Vaculik,M (2276) Czech Republic 2016}) 12... Be6 {[%emt 0:01:41]} 13. e4 {[%emt 0:03:12]} f5 {[%emt 0:14:09]} 14. Nd5 {[%emt 0:00:52]} fxe4 {[%emt 0:11:04]} 15. dxe4 {[%emt 0:00:07]} Kh7 {[%emt 0:05:21]} 16. Qd3 {[%emt 0:01:48]} Qd7 {[%emt 0:08:53]} 17. Rbd1 {[%emt 0:01:45]} Rbd8 {[%emt 0:02:32]} 18. Qe3 {[%emt 0:01:29]} ({Better is} 18. Qc2 $11) 18... Nd4 {[%emt 0:00:57]} 19. Ne1 {[%emt 0:00:35]} b6 {[%emt 0:02:42]} 20. Kh1 {[%emt 0:00:57]} Nec6 {[%emt 0:01:51]} 21. Nd3 {[%emt 0:00:46]} (21. Bc3 $15) 21... Rf7 {[%emt 0:02:09]} (21... Na5 $17 22. Rc1 Qa4 23. Bxd4 cxd4) 22. Bc3 {[%emt 0:03:35]} Rdf8 {[%emt 0:00:15]} 23. f3 {[%emt 0:00:44]} (23. f4 $11) 23... Bh3 {[%emt 0:01:48]} 24. Ne1 {[%emt 0:01:35]} ({White should play} 24. f4 $15) 24... Bxg2+ {[%emt 0:00:37]} 25. Kxg2 {[%emt 0:00:02]} Nd8 {[%emt 0:00:58]} ({Black should play} 25... h5 $17) 26. Rd2 {[%emt 0:02:33]} N8e6 {[%emt 0:00:01]} 27. Rdf2 {[%emt 0:00:14]} Qa4 {[%emt 0:04:31]} 28. Bxd4 {[%emt 0:02:17]} cxd4 {[%emt 0:01:20]} ({Much less strong is} 28... exd4 29. Qd3 $15) ({Don't play} 28... Nxd4 $6 29. Qc3 $11) 29. Qc1 {[%emt 0:00:10]} Rc8 {[%emt 0:00:23]} 30. Rc2 {[%emt 0:00:02]} Bf8 {[%emt 0:00:22]} 31. Nd3 {[%emt 0:06:28] [#]} Bxa3 $2 {[%emt 0:00:17]} (31... Bd6 $1 $17 {and life is bright.}) 32. Ra2 {[%emt 0:00:33]} Bxc1 {[%emt 0:04:20]} 33. Rxa4 {[%emt 0:00:13]} Bd2 {[%emt 0:02:14]} 34. Nxe5 {[%emt 0:00:50]} Rb7 {[%emt 0:00:28]} 35. Rfa1 {[%emt 0:01:50]} Ba5 {[%emt 0:00:22]} 36. Nd3 {[%emt 0:01:02]} Kg7 {[%emt 0:00:25]} 37. f4 {[%emt 0:00:18]} Nc5 {[%emt 0:01:39]} (37... Rf7 $16 38. Rd1 Bc3) 38. Nxc5 {[%emt 0:00:36]} Rxc5 {[%emt 0:00:02] [#]} 39. Kf3 {[%emt 0:00:17]} ({White should play} 39. R1a3 $1 $18) 39... d3 {[%emt 0:00:42]} 40. g4 {[%emt 0:03:39]} (40. R1a3 $16) 40... Rb8 {[%emt 0:31:24]} ({Black should try} 40... d2 $11) 41. Ke3 {[%emt 0:30:51]} d2 {[%emt 0:00:07]} 42. Kd4 {[%emt 0:00:21]} Kf7 {[%emt 0:00:37]} (42... Rh8 $11) 43. f5 {[%emt 0:00:59]} (43. Rd1 $16) 43... Rd8 {[%emt 0:00:29]} 44. Rd1 {[%emt 0:03:09]} gxf5 {[%emt 0:01:50]} 45. gxf5 {[%emt 0:00:19]} Rg8 {[%emt 0:00:10]} 46. e5 $2 {[%emt 0:03:48]} (46. Ra3 $11 {and White is okay.}) 46... Rg4+ {[%emt 0:00:28]} 47. Kd3 {[%emt 0:00:02] [#]} Rxd5+ $1 {[%emt 0:00:23]} 48. cxd5 {[%emt 0:00:08]} Rxa4 {[%emt 0:00:02]} 49. f6 {[%emt 0:01:39]} Ra3+ {[%emt 0:01:54]} 50. Ke4 {[%emt 0:04:47]} Bc3 {[%emt 0:00:10]} 51. Kf5 {[%emt 0:01:17]} Ra1 {[%emt 0:02:25]} 52. e6+ {[%emt 0:00:03]} Kf8 {[%emt 0:01:57]} 53. e7+ {[%emt 0:02:51]} Kf7 {[%emt 0:03:17]} 54. d6 {[%emt 0:00:46]} Bxf6 $2 {[%emt 0:02:02]} (54... Rxd1 {mates} 55. d7 Rf1+ 56. Ke4 Re1+ 57. Kf4 d1=Q 58. e8=Q+ Rxe8 59. dxe8=N Kxe8 60. Kg3 Kf7 61. Kf2 Bd4+ 62. Kg3 h5 63. h3 Kxf6 64. Kg2 h4 65. Kh2 Qg1#) 55. Rxd2 {[%emt 0:01:58] [#]} Bxe7 $1 {[%emt 0:00:29]} 56. dxe7 {[%emt 0:00:13]} Ra5+ {[%emt 0:00:02]} 57. Ke4 {[%emt 0:01:08]} Kxe7 {[%emt 0:00:04]} 58. Kd4 {[%emt 0:00:40]} Kd6 {[%emt 0:00:18]} 59. Rg2 {[%emt 0:00:35]} Ra4+ {[%emt 0:00:09]} 60. Kc3 {[%emt 0:00:01]} Rh4 {[%emt 0:00:18]} 61. Kb3 {[%emt 0:00:14]} a5 {[%emt 0:00:12]} 62. Rc2 {[%emt 0:00:40]} b5 {[%emt 0:00:09]} 63. Ka3 {[%emt 0:00:20]} Rh3+ {[%emt 0:00:08]} 64. Kb2 {[%emt 0:00:03]} a4 {[%emt 0:00:08]} 65. Rf2 {[%emt 0:00:10]} Kc5 {[%emt 0:00:07]} 66. Rf5+ {[%emt 0:00:21]} Kb4 {[%emt 0:00:09]} 67. Rf2 {[%emt 0:00:43]} a3+ {[%emt 0:00:12]} 68. Ka2 {[%emt 0:00:02]} Ka4 $19 {[%emt 0:00:08]} 0-1

[Event "21st Alekhine FIDE 2017"]
[Site "Voronezh"]
[Date "2017.06.16"]
[Round "5"]
[White "Filippov, Ivan"]
[Black "Filippov, Vladimir"]
[Result "1/2-1/2"]
[ECO "A41"]
[WhiteElo "2041"]
[BlackElo "1882"]
[Annotator "NA RC"]
[PlyCount "41"]
[EventDate "2017.??.??"]
[EventType "swiss"]
[EventCountry "RUS"]
[SourceTitle "playchess.com"]
[Source "ChessBase"]
[SourceQuality "1"]
[TimeControl "40/5400+30:1800+30"]

{[%evp 8,41,54,56,87,32767,64,64,81,55,70,63,85,87,89,100,102,21,111,83,114,76,104,89,118,106,131,112,106,0,141,110,128,72,136,162]} 1. d4 {[%emt 0:00:00]} d6 {[%emt 0:00:08]} 2. Nf3 {[%emt 0:00:36]} Nf6 {[%emt 0:00:07]} 3. c4 {[%emt 0:00:22]} Nbd7 {[%emt 0:00:17]} 4. Nc3 {[%emt 0:01:04]} e5 {[%emt 0:00:36]} 5. e4 {[%emt 0:01:44]} c6 {[%emt 0:00:20]} 6. Be2 {[%emt 0:01:46]} Be7 {[%emt 0:03:17]} 7. O-O {[%emt 0:00:40]} O-O {[%emt 0:00:54] LiveBook: 2282 Games} 8. Qc2 {[%emt 0:01:30]} Qc7 {[%emt 0:01:55]} 9. h3 {[%emt 0:02:25] A55: Old Indian Defence with Nf3 and e4} (9. Be3 Re8 10. h3 Nf8 11. Rfe1 Ng6 12. Rad1 a6 13. a3 Rb8 14. Bf1 b6 15. b4 Bd7 16. c5 bxc5 17. dxc5 dxc5 18. bxc5 Qa5 {1-0 (68) Ponomariov,R (2743)-Dubov,D (2638) Khanty-Mansiysk 2013}) 9... Ne8 {[%emt 0:04:35]} 10. Be3 {[%emt 0:01:43]} g6 {[%emt 0:00:54]} 11. d5 $146 {[%emt 0:12:46]} ({Predecessor:} 11. Rad1 Ng7 12. b4 Re8 13. d5 Bf8 14. Bd3 Nh5 15. Rfe1 Nhf6 16. Rc1 cxd5 17. cxd5 {1-0 (39) Kovalenko,S (2205)-Filippov,V (2042) Voronezh 2007}) 11... Ng7 {[%emt 0:01:21]} 12. Bg5 {[%emt 0:01:46]} (12. Qd2 $16) 12... Nf6 {[%emt 0:04:20]} (12... Bxg5 $14 13. Nxg5 Nf6) 13. a4 {[%emt 0:03:38]} Ngh5 {[%emt 0:06:45]} 14. Bh6 {[%emt 0:03:28]} Ng7 {[%emt 0:02:36]} 15. Nd2 {[%emt 0:01:17]} Nd7 {[%emt 0:09:13]} 16. a5 {[%emt 0:03:15]} a6 $1 {[%emt 0:03:11]} 17. Bg4 {[%emt 0:02:43]} Nf6 {[%emt 0:03:20]} 18. Be2 {[%emt 0:00:09]} (18. Bf3 $16) 18... Nd7 {[%emt 0:00:24]} 19. b4 {[%emt 0:04:28]} c5 {[%emt 0:03:20]} 20. b5 {[%emt 0:11:23]} axb5 {[%emt 0:02:34]} ({Black should play} 20... Qd8 $14) 21. cxb5 $18 {[%emt 0:00:39]} 1/2-1/2

[Event "21st Alekhine FIDE 2017"]
[Site "Voronezh"]
[Date "2017.06.16"]
[Round "5"]
[White "Arbuzov, Mikhail"]
[Black "Mezhov, Dmitriy"]
[Result "0-1"]
[ECO "A80"]
[WhiteElo "2022"]
[BlackElo "1809"]
[Annotator "NA RC"]
[PlyCount "94"]
[EventDate "2017.??.??"]
[EventType "swiss"]
[EventCountry "RUS"]
[SourceTitle "playchess.com"]
[Source "ChessBase"]
[SourceQuality "1"]
[TimeControl "40/5400+30:1800+30"]

{[%evp 8,94,27,25,83,81,100,70,75,43,187,116,114,74,506,102,458,316,489,563,825,888,887,-465,-492,-465,-463,-500,-585,32767,-618,-584,-218,-248,-229,-183,0,-5,0,32767,32767,32767,0,-200,-319,-289,32767,-295,-306,-311,-319,-341,-331,32767,32767,32767,32767,-372,-377,-377,-274,-265,-250,32767,32767,-359,-345,-409,-433,-428,-426,-632,-662,-1685,-4134,-1876,-2149,-1571,-5061,-655,-957,-12840,-5492,-5712,-12841,-12846,-12847,32767,-29999]} 1. d4 {[%emt 0:00:00]} f5 {[%emt 0:00:06]} 2. Nc3 {[%emt 0:01:49]} Nf6 {[%emt 0:00:21]} 3. Bg5 {[%emt 0:00:08]} d5 {[%emt 0:05:59]} 4. f3 {[%emt 0:13:49]} Nbd7 {[%emt 0:06:48]} 5. Nh3 {[%emt 0:11:25]} (5. e4 $5) 5... e6 {[%emt 0:13:42]} (5... c6 $11) 6. e4 {[%emt 0:23:51]} fxe4 {[%emt 0:14:51]} 7. fxe4 {[%emt 0:02:06]} dxe4 {[%emt 0:00:04]} 8. Nf4 {[%emt 0:14:15]} Qe7 {[%emt 0:06:42] [#]} ({Better is} 8... Bd6 $1 $14) 9. Nxe4 $1 {[%emt 0:05:52]} Qf7 {[%emt 0:00:06]} 10. Bd3 {[%emt 0:06:03]} (10. Qf3 $142) 10... e5 $2 {[%emt 0:09:00]} (10... Nxe4 $1 $14 11. Bxe4 Be7) 11. Bxf6 $2 {[%emt 0:08:11]} (11. Qe2 $18) 11... gxf6 $4 {[%emt 0:00:19]} (11... Nxf6 $16 12. Nxf6+ gxf6) 12. Nh5 {[%emt 0:01:27]} Be7 {[%emt 0:09:10]} (12... Kd8 $142 13. O-O Qd5 14. Nhxf6 Nxf6) 13. O-O {[%emt 0:00:42]} f5 {[%emt 0:00:00] [#]} (13... O-O $142 14. Nhxf6+ Bxf6 15. dxe5 Kh8 16. exf6 Qg6) 14. Rxf5 $1 {[%emt 0:00:22]} Qd5 {[%emt 0:01:38]} 15. Rxe5 $4 {[%emt 0:01:44]} (15. Kh1 $18 {and all is fine.}) 15... Qxd4+ {[%emt 0:00:21]} 16. Kh1 {[%emt 0:01:54]} Qxe5 {[%emt 0:00:27]} 17. Qg4 {[%emt 0:00:40]} Nc5 {[%emt 0:03:51]} 18. Qe2 {[%emt 0:04:10]} Nxd3 {[%emt 0:05:55]} 19. cxd3 {[%emt 0:00:31]} Be6 $2 {[%emt 0:00:21]} (19... O-O 20. g3 b6) 20. d4 {[%emt 0:00:22]} Qxd4 {[%emt 0:05:28]} 21. Nef6+ {[%emt 0:00:32]} Kf7 $2 {[%emt 0:00:28]} (21... Bxf6 $19 22. Qxe6+ Be7) 22. Rf1 $1 {[%emt 0:00:30] [#]} Bxf6 {[%emt 0:00:05]} (22... Raf8 $1 $17 23. Nd5+ Ke8 24. Nxc7+ Kd7 25. Qxe6+ Kxc7 26. Qxe7+ Kb6 27. Qe6+ Ka5) 23. Rxf6+ {[%emt 0:00:17]} Qxf6 {[%emt 0:00:02]} 24. Nxf6 {[%emt 0:00:07]} Kxf6 {[%emt 0:00:04]} 25. Qf3+ $2 {[%emt 0:00:10]} (25. Qf2+ $11 {and White stays safe.} Ke7 26. Qh4+ Kf7 27. Qf4+ Kg6 28. Qg3+ Kf6 29. Qh4+ Kf5 30. Qf2+ Kg5 31. Qe3+ Kf6 32. Qf4+ Kg6 33. Qg3+ Kf7 34. Qf4+ Kg6) 25... Ke7 {[%emt 0:01:07]} 26. Qxb7 {[%emt 0:00:14]} Kd7 {[%emt 0:01:17]} 27. Qb5+ {[%emt 0:00:26]} c6 {[%emt 0:00:01]} 28. Qb7+ {[%emt 0:00:09]} Kd6 {[%emt 0:00:07]} 29. Qb4+ {[%emt 0:00:16]} Kc7 {[%emt 0:00:25]} 30. Qe7+ {[%emt 0:00:43]} Bd7 {[%emt 0:00:06]} 31. Qe5+ {[%emt 0:00:15]} Kb7 {[%emt 0:00:05]} 32. h3 {[%emt 0:00:58]} Rae8 {[%emt 0:01:12]} 33. Qg7 {[%emt 0:00:12]} Kc8 {[%emt 0:00:12]} 34. Qd4 {[%emt 0:00:30]} Be6 {[%emt 0:02:22]} 35. Qxa7 {[%emt 0:00:51]} Bd5 {[%emt 0:00:05]} 36. Kh2 $2 {[%emt 0:00:21]} (36. Qa8+ Kd7 37. Qa7+ Kd6 38. Qa3+ c5 39. Qa6+ Bc6 40. Qd3+ Kc7 41. Qg3+ Kc8 42. Qd6) 36... Rhg8 {[%emt 0:00:18]} 37. g4 {[%emt 0:00:32]} Re2+ {[%emt 0:01:49]} 38. Kg3 {[%emt 0:00:05]} Rxb2 {[%emt 0:00:08]} 39. a4 {[%emt 0:02:16]} (39. Qxh7 $142 Rg2+ 40. Kf4) 39... h5 {[%emt 0:00:40]} 40. Qa6+ {[%emt 0:00:39]} Kc7 {[%emt 0:30:12]} 41. Qa7+ {[%emt 0:30:27]} Rb7 {[%emt 0:00:39]} 42. Qc5 {[%emt 0:00:36]} Rb3+ {[%emt 0:00:34]} 43. Kh4 {[%emt 0:00:28]} hxg4 {[%emt 0:00:50]} 44. hxg4 {[%emt 0:00:16]} Rb2 {[%emt 0:01:17]} (44... Be6 $142 45. Qa7+ Rb7 46. Qa5+ Kd7 47. Qd2+ Ke7 48. Kg3 Rxg4+ 49. Kf2 Rxa4 50. Qg5+ Ke8 51. Qh6 Rf7+ 52. Ke2 Kd7 53. Kd2 Rf2+ 54. Ke1 Rg2 55. Kf1 Rag4 56. Qe3 Bc4+ 57. Ke1 Re2+ 58. Qxe2 Bxe2 59. Kd2 c5 60. Ke3 c4 61. Kxe2 Rd4 62. Kf3 c3 63. Ke3 Rd5 64. Ke4 Ke6 65. Kf3 c2 66. Kg4 c1=Q 67. Kg3 Rd3+ 68. Kg4 Kf6 69. Kh5 Qg5#) 45. Qe7+ {[%emt 0:00:27]} Kc8 {[%emt 0:00:04]} 46. g5 {[%emt 0:00:50]} Rg2 {[%emt 0:00:43]} 47. a5 {[%emt 0:00:23]} Rh8+ {[%emt 0:00:09]} 0-1